Cogmind - Beta 16 --- EXPLORER MODE // 2025.12.11 @ 13:10:05 Player: K.K.Y. Result: Destroyed by Piercing Trap Performance ------------- Evolutions (0) 0 Regions Visited (3) 600 Robots Destroyed (35) 175 Value Destroyed (750) 750 Prototype IDs (13) 260 Alien Tech Used (0) 0 Bonus (2) 2 TOTAL SCORE: 1787 Bonus ------- Follower Combat Kills 21 Friendly Fire -19 Cogmind --------- Core Integrity 0/250 Matter 300/300 Energy 154/160 System Corruption 5% Temperature Cool (0) Movement Rolling (80) Location -10/Subcaves Parts ------- > --- POWER (1) -------- Light Nuclear Core > --- PROPULSION (3) --- Wheel Wheel Wheel > --- UTILITY (2) ------ Small Storage Unit V3-11A's Pendant > --- WEAPON (2) ------- Beamcaster Barrage Gun > --- INVENTORY (8) ---- Meta Core Huge Storage Unit Light Humpback Structural Scanner Sensor Array Improved Terrain Scanner Mining Laser Peak State ------------ > --- POWER ------------ Light Nuclear Core > --- PROPULSION ------- Wheel Wheel Wheel > --- UTILITY ---------- Small Storage Unit V3-11A's Pendant > --- WEAPON ----------- Beamcaster Barrage Gun > --- INVENTORY -------- Meta Core Improved Heat Sink Huge Storage Unit Structural Scanner Sensor Array Improved Terrain Scanner Riot Gun Mining Laser [Rating: 20] Favorites ----------- Power Light Ion Engine Engine Light Ion Engine Power Core Light Nuclear Core Propulsion Wheel Wheel Wheel Utility Small Storage Unit Device Structural Scanner Storage Small Storage Unit Processor Targeting Computer Weapon Light Assault Rifle Energy Gun Beamcaster Ballistic Gun Light Assault Rifle Special Weapon Mining Laser Build | -11 -10 -10 -10 ------- Run | Yrd Mat Min Sub Slots Evolved 1 | . 1 . . Power . | . . . . Propulsion 1 | . 1 . . Utility . | . . . . Weapon . | . . . . Parts Attached 23 | 7 5 7 4 Power 2 | 1 . 1 . Engine 1 | 1 . . . Core 1 | . . 1 . Reactor . | . . . . Propulsion 8 | 2 3 3 . Treads . | . . . . Leg . | . . . . Wheel 8 | 2 3 3 . Hover . | . . . . Flight . | . . . . Utility 6 | 2 2 1 1 Device 3 | . 1 1 1 Storage 1 | . 1 . . Processor 2 | 2 . . . Hackware . | . . . . Protection . | . . . . Artifact . | . . . . Weapon 7 | 2 . 2 3 Energy Gun 3 | . . 2 1 Energy Cannon . | . . . . Ballistic Gun 3 | 2 . . 1 Ballistic Cannon . | . . . . Launcher . | . . . . Special Weapon 1 | . . . 1 Impact Weapon . | . . . . Slashing Weapon . | . . . . Piercing Weapon . | . . . . Special Melee Weapon . | . . . . Unidentified Prototypes 1 | . . . 1 Parts Lost 9 | . 1 8 . Power 1 | . . 1 . Propulsion 4 | . 1 3 . Utility 1 | . . 1 . Weapon 3 | . . 3 . Highest Loss Streak 8 | . 1 8 . To Critical Strikes . | . . . . Average Backups 6 | 1 4 6 7 Power . | . . . . Propulsion . | . . . . Utility 3 | . 2 4 5 Weapon 1 | . 1 1 1 Tool/Special . | . . . . Unused Backups 6 | . . . 6 Power . | . . . . Propulsion . | . . . . Utility 5 | . . . 5 Weapon . | . . . . Tool/Special 1 | . . . 1 Average Slot Usage (%) 82 | . 88 68 99 Engine 5 | . 12 4 . Core 3 | . . . 12 Wheel 27 | . 26 21 37 Device 11 | . 10 11 12 Storage 11 | . 10 12 12 Energy Gun 7 | . . 7 16 Ballistic Gun 13 | . 25 9 6 Peak Build Rating 20 | 7 9 14 20 Average Rating 11 | 3 7 8 18 On Entrance 7 | . 7 9 14 Avg Prop Armor Cover (%) . | . . . . Naked Turns . | . . . . Heaviest Build 19 | 5 11 16 19 Greatest Support 30 | 20 30 30 30 Greatest Overweight (x) 3 | . 1 3 . Average Overweight (x) . | . . . . Largest Inventory Capacity 8 | 5 8 8 8 Average Capacity 7 | 5 7 8 8 Most Carried 8 | 4 7 8 8 Average Carried 6 | 1 4 6 7 Final Capacity 8 | 5 8 8 8 Final Carried 8 | 3 7 6 8 Class Distribution -------------------- 64% | Hacker-Mutant 35% | Scavenger-Mutant Dominant Class ---------------- Hacker-Mutant | -10/Materials Hacker-Mutant | -10/Mines Scavenger-Mutant | -10/Subcaves Resources | -11 -10 -10 -10 ----------- Run | Yrd Mat Min Sub Matter Collected 607 | 225 214 72 96 Remotely . | . . . . Salvage Created 1032 | 114 491 171 256 Parts 72 | 8 33 18 13 Haulers Intercepted 1 | . 1 . . Recyclers Shooed 3 | . 1 2 . Parts Field Recycled . | . . . . Retrieved Matter . | . . . . Parts Self-Destructed . | . . . . Prevented . | . . . . Parts Restored . | . . . . Kills | -11 -10 -10 -10 ------- Run | Yrd Mat Min Sub Combat Hostiles Destroyed 15 | . 7 2 6 Guns 15 | . 7 2 6 Classes Destroyed 12 | 2 5 1 4 Worker 5 | . 2 3 . Builder 3 | . 1 2 . Tunneler 5 | 2 . 3 . Hauler 1 | . 1 . . Recycler 1 | 1 . . . Turret 2 | . . . 2 Watcher 3 | . 3 . . Swarmer 2 | . . . 2 Grunt 9 | . 7 . 2 Sentry 1 | . . . 1 Demolisher 2 | . . 2 . Subdweller 1 | . . . 1 Best Kill Streak 6 | 3 6 3 3 Combat Bots Only 3 | . 3 2 2 Max Kills in Single Turn 1 | 1 1 1 1 Gunslinging . | . . . . Exploded . | . . . . Melee . | . . . . Uniques/NPCs Destroyed . | . . . . Combat | -11 -10 -10 -10 -------- Run | Yrd Mat Min Sub Hostile Shots Fired 96 | . 41 11 44 Missed 33 | . 13 . 20 Hits 63 | . 28 11 24 Projectile 63 | . 28 11 24 AOE 11 | . . 11 . Critical Strikes 3 | . 2 . 1 Damage Taken 998 | . 260 539 199 Core 265 | . 92 107 66 Absorbed by Shields . | . . . . Ignored by Resistances 438 | . 161 160 117 Core Remaining (%) 100 | 100 . . . Volleys Fired 114 | 5 57 30 22 Largest 2 | 2 2 2 2 Hottest 175 | 40 40 75 175 Shots Fired 194 | 10 114 31 39 Gun 193 | 10 114 31 38 Cannon . | . . . . Launcher . | . . . . Special 1 | . . . 1 Kinetic 138 | 10 114 5 9 Thermal 56 | . . 26 30 Explosive . | . . . . Electromagnetic . | . . . . Robot Hit Streak 35 | 5 34 35 9 Robot Miss Streak 2 | 1 2 1 1 Penetration Max . | . . . . Secondary Targets 1 | . 1 . . Max Gunslinging Chain 1 | . 1 . . Shots Hit Robots 151 | 8 94 29 20 Core Hits 66 | 6 36 12 12 Critical Kills . | . . . . Critical Parts Destroyed . | . . . . Critical Strikes 3 | . . 2 1 Burn 3 | . . 2 1 Melee Attacks . | . . . . Impact . | . . . . Slashing . | . . . . Piercing . | . . . . Sneak Attacks . | . . . . Combat Hostiles . | . . . . Follow-up Attacks . | . . . . Damage Inflicted 1749 | 65 763 534 387 Guns 1749 | 65 763 534 387 Cannons . | . . . . Explosions . | . . . . Melee . | . . . . Ramming . | . . . . Kinetic 983 | 65 763 46 109 Thermal 766 | . . 488 278 Explosive . | . . . . Electromagnetic . | . . . . Impact . | . . . . Slashing . | . . . . Piercing . | . . . . Highest Corruption 5 | . . 5 5 Average Corruption 5 | . . 5 5 Corruption Purged . | . . . . Corruption Blocked . | . . . . Effects 30 | . . 19 11 Message Errors 13 | . . 9 4 Matter Fused 2 | . . 2 . Heat Flow Errors 3 | . . 3 . Energy Discharges 3 | . . 1 2 Data Loss (minor) 4 | . . 3 1 Data Loss (major) 2 | . . . 2 Alerts 1 | . . . 1 Weapon Failures 2 | . . 1 1 Overload Shots . | . . . . Overflow Damage . | . . . . Projectiles . | . . . . Explosions . | . . . . Melee . | . . . . Knockbacks . | . . . . Impact . | . . . . Kinetic . | . . . . Secondary . | . . . . Self-Inflicted Damage . | . . . . Shots . | . . . . Rammed . | . . . . Targets Rammed . | . . . . Kicked . | . . . . Crushed . | . . . . Highest Temperature 319 | . 36 319 189 Average Temperature 60 | . 13 89 53 Received Heat Transfer 537 | . 246 . 291 Siege Activations . | . . . . Martial Activations . | . . . . Shielding Activations . | . . . . Robots Disrupted . | . . . . Combat Hostiles . | . . . . Robots Corrupted . | . . . . Combat Hostiles . | . . . . Parts Fried . | . . . . Impact Corruptions . | . . . . Robots Melted . | . . . . Combat Hostiles . | . . . . Parts Melted 2 | . . 2 . Heat Transferred 1628 | . . 1036 592 Parts Sabotaged . | . . . . Parts Stolen . | . . . . Parts Stripped . | . . . . Power Chain Reactions . | . . . . Alert | -11 -10 -10 -10 ------- Run | Yrd Mat Min Sub Maximum Alert Level . | . . . . Low Security (%) 100 | 100 100 100 . Level 1 . | . . . . Level 2 . | . . . . Level 3 . | . . . . Level 4 . | . . . . Level 5 . | . . . . High Security . | . . . . Max Security . | . . . . Peak Influence 62 | 10 62 30 . Initial . | . . . . Average 5 | 2 13 . . Influence Increases 572 | 15 213 94 250 Destroy 0b10 Robot/C 380 | . 140 40 200 Destroy 0b10 Robot/NC 90 | 15 35 40 . Destroy Leader 58 | . 38 10 10 Allied During Kill 10 | . . . 10 Disable Machine 4 | . . 4 . Lose Combat Pursuer 30 | . . . 30 Influence Decreases 447 | 15 213 94 125 Time Decay 417 | 15 203 74 125 Lost Part 30 | . 10 20 . Squads Dispatched . | . . . . Investigation . | . . . . Extermination . | . . . . Reinforcement . | . . . . Assault . | . . . . Garrison . | . . . . Intercept . | . . . . Searches Triggered . | . . . . Construction Impeded . | . . . . Haulers Reinforced . | . . . . Active Scanning Responses . | . . . . Cargo Convoy Interrupts . | . . . . Stealth | -11 -10 -10 -10 --------- Run | Yrd Mat Min Sub Distress Signals . | . . . . Communications Jammed . | . . . . Distress Signals . | . . . . Times Spotted 31 | . 11 6 14 Peak Tracking Total 6 | . 3 4 6 Tactical Retreats 1 | . . . 1 Traps | -11 -10 -10 -10 ------- Run | Yrd Mat Min Sub Traps Triggered 4 | . 3 . 1 Indirectly . | . . . . Trap Hack Attempts . | . . . . Triggered . | . . . . Disarmed . | . . . . Reprogrammed . | . . . . Reused . | . . . . Traps Extracted . | . . . . Installed . | . . . . Triggered . | . . . . Machines | -11 -10 -10 -10 ---------- Run | Yrd Mat Min Sub Machines Disabled 2 | . . 1 1 Max in Single Turn 1 | . . 1 1 Machines Repaired . | . . . . Machines Dismantled . | . . . . Machines Sabotaged . | . . . . Overloaded Fab Kills . | . . . . Hacking | -11 -10 -10 -10 --------- Run | Yrd Mat Min Sub Machines Accessed 5 | . 4 . 1 Terminals 3 | . 3 . . Fabricators . | . . . . Repair Stations . | . . . . Recycling Units 1 | . 1 . . Scanalyzers . | . . . . Garrison Access . | . . . . Total Hacks 7 | . 6 . 1 Successful 5 | . 4 . 1 Failed 2 | . 2 . . Catastrophic . | . . . . Database Lockouts . | . . . . Manual 6 | . 6 . . Terminals 5 | . 5 . . Fabricators . | . . . . Repair Stations . | . . . . Recycling Units 1 | . 1 . . Scanalyzers . | . . . . Garrison Access . | . . . . Terminal Hacks 1 | . . . 1 Proto ID Catalog 1 | . . . 1 Fabricator Hacks . | . . . . Repair Station Hacks . | . . . . Recycling Unit Hacks 1 | . 1 . . Retrieve Components 1 | . 1 . . Scanalyzer . | . . . . Garrison Access Hacks . | . . . . Unauthorized Hacks 3 | . 3 . . Terminals 3 | . 3 . . Botnet 3 | . 3 . . Fabricators . | . . . . Repair Stations . | . . . . Recycling Units . | . . . . Scanalyzers . | . . . . Garrison Access . | . . . . Data Cores Recovered . | . . . . Used . | . . . . Hacking Detections 2 | . 2 . . Full Trace Events . | . . . . Feedback Events . | . . . . Feedback Blocked . | . . . . Robot Schematics Acquired . | . . . . Robots Built . | . . . . Authchips . | . . . . Time . | . . . . Total Robot Build Rating . | . . . . Part Schematics Acquired . | . . . . Parts Built . | . . . . Authchips . | . . . . Time . | . . . . Total Part Build Rating . | . . . . Part Studies Acquired . | . . . . Parts Repaired . | . . . . Time . | . . . . Parts Recycled . | . . . . Recycled Matter . | . . . . Retrieved Matter . | . . . . Retrieved Components 1 | . 1 . . Parts Scanalyzed . | . . . . Part Schematics Acquired . | . . . . Parts Damaged . | . . . . Bothacking | -11 -10 -10 -10 ------------ Run | Yrd Mat Min Sub Used RIF Installer . | . . . . Robots Hacked . | . . . . Non-combat . | . . . . Combat . | . . . . Robot Hacks Applied . | . . . . Relay Couplers Released . | . . . . Fabnet Peak Effective % . | . . . . Robots Rewired . | . . . . Allies Hacked . | . . . . Hacks Repelled . | . . . . Allies | -11 -10 -10 -10 -------- Run | Yrd Mat Min Sub Total Allies 10 | . . 5 5 Largest Group 5 | . . 3 5 Highest-Rated Group 95 | . . 45 95 Highest-Rated Ally 31 | . . 31 19 Total Orders . | . . . . Ally Attacks 39 | . . 37 2 Total Damage 585 | . . 335 250 Kills 8 | . . 4 4 Allies Corrupted . | . . . . Allies Melted . | . . . . Intel | -11 -10 -10 -10 ------- Run | Yrd Mat Min Sub Active Infowar (turns) 1331 | . 453 761 117 Structural 1331 | . 453 761 117 Robot Analysis Total . | . . . . Derelict Logs Recovered 3 | . . 1 2 Drone Launches . | . . . . Drone Recoveries . | . . . . Exploration | -11 -10 -10 -10 ------------- Run | Yrd Mat Min Sub Turns Passed 1932 | 66 496 831 539 Spaces Moved 1677 | 69 404 627 577 Core 192 | 63 . 129 . Treads . | . . . . Legs . | . . . . Wheels 1485 | 6 404 498 577 Hover . | . . . . Flight . | . . . . Fastest Speed 50 | 50 80 80 80 Average Speed 88 | 52 80 105 80 Slowest Speed 200 | 80 95 200 80 Overloaded Moves . | . . . . Propulsion Burnouts . | . . . . Robots Hopped . | . . . . Potential Cave-ins . | . . . . Cave-ins Triggered 1 | . . 1 . Exploration Rate (%) 56 | 4 77 99 44 Regions Visited 3 Branch Regions 2 Pre-discovered Areas 1 | . . . 1 Known Exits Taken 3 | 1 1 1 . Unknown Exits Taken . | . . . . Scrap Searched 7 | . . . 7 Spaces Dug . | . . . . Terrain Destroyed . | . . . . Melee . | . . . . Projectile . | . . . . AOE . | . . . . Terrain Rammed . | . . . . Walls Destroyed . | . . . . Machines Disabled . | . . . . Actions | -11 -10 -10 -10 --------- Run | Yrd Mat Min Sub Total 1951 | 90 484 762 615 Wait 101 | . 7 94 . Move 1674 | 68 403 626 577 Hop . | . . . . Pick Up 30 | 10 9 5 6 Fast Attach 2 | . . 1 1 Attach 19 | 7 4 6 2 Detach 2 | . 2 . . Swap 3 | . 1 . 2 Drop 6 | . 1 . 5 Fire 114 | 5 57 30 22 Melee . | . . . . Ram . | . . . . Kick . | . . . . Crush . | . . . . Escape Stasis . | . . . . Rewire . | . . . . Trap . | . . . . Miscellaneous . | . . . . Route ------- -11/Scrapyard -10/Materials (discovered 3 exits: *Mat x2 / *Min) -10/Mines (discovered 3 exits: *Mat x2 / *Sub) -10/Subcaves (discovered 1 exit: *Mat) History --------- Turn | Location | Event 4 | -11/Scrapyard | Identified exit to Materials 4 | -11/Scrapyard | Discovered exit to Materials (range 16) 67 | -11/Scrapyard | Entered Materials 67 | -10/Materials | Evolved 1 slot: Propulsion x1 236 | -10/Materials | Identified exit to Materials 236 | -10/Materials | Discovered exit to Materials (range 5) 303 | -10/Materials | Build established: Hacker-Mutant 320 | -10/Materials | Discovered exit to Materials (range 3) 540 | -10/Materials | Identified exit to Mines 540 | -10/Materials | Discovered exit to Mines (range 13) 563 | -10/Materials | Entered Mines 565 | -10/Mines | Assisted by bots powering up and referring to "LRC-V3" 641 | -10/Mines | Assembled infested the area 730 | -10/Mines | Discovered exit to Materials (range 12) 752 | -10/Mines | Learned Materials terminal intel 876 | -10/Mines | Crushed by falling debris 876 | -10/Mines | Core integrity fell below 50% 925 | -10/Mines | Lost 8 parts (1p3n1u3w) 1261 | -10/Mines | Discovered exit to Materials (range 8) 1381 | -10/Mines | Identified exit to Subcaves 1381 | -10/Mines | Discovered exit to Subcaves (range 6) 1394 | -10/Mines | Entered Subcaves 1394 | -10/Subcaves | Accompanied by 1 ally 1413 | -10/Subcaves | Core integrity fell below 20% 1434 | -10/Subcaves | Identified exit to Materials 1434 | -10/Subcaves | Discovered exit to Materials (range 4) 1446 | -10/Subcaves | Disturbed a concealed Subdweller 1461 | -10/Subcaves | Learned 2 Materials zone layouts 1467 | -10/Subcaves | A swath of the cavern ceiling suddenly collapsed 1488 | -10/Subcaves | Learned location of Zion (-6) 1506 | -10/Subcaves | Visited triangular shrine 1511 | -10/Subcaves | Found Prototype Device 1511 | -10/Subcaves | Identified V3-11A's Pendant 1516 | -10/Subcaves | Befriended Subdweller 1546 | -10/Subcaves | Befriended Subdweller 1553 | -10/Subcaves | Build established: Scavenger-Mutant 1599 | -10/Subcaves | Visited 4L-MR0's lab 1614 | -10/Subcaves | Found Meta Core 1720 | -10/Subcaves | Ambushed by Subdwellers from Twisted Machinery 1721 | -10/Subcaves | Befriended Subdweller 1721 | -10/Subcaves | Befriended Subdweller 1751 | -10/Subcaves | Befriended Subdweller 1933 | -10/Subcaves | Destroyed by Piercing Trap Last Messages --------------- 01831_ System corrupted: Substantial component data lost. 01836_ S-10 Pest destroyed. 01849_ Acquired 10 matter. 01849_ Acquired 6 matter. 01876_ OG-IA2(R) destroyed. 01876_ S-10 Pest destroyed. 01879_ Autobeam Turret destroyed. 01882_ CN-RPO(R) affixes Scrap Shield Fragment to Scrap Shield. 01883_ Autobeam Turret destroyed. 01896_ Acquired 3 matter. 01899_ Searching scrap... 01899_ Found Mak. Light Armor Plating. 01899_ Found Sub. Machine Gun. 01899_ Found 43 Matter. 01900_ Acquired 17 matter. 01933_ Triggered Piercing Trap. 01933_ Spikes shoot up from the floor. 01933_ Critical hit (Impale). Map ----- +----------------------------------------------------+ | ??????????????????????????????????????????????? | | ??????????????????????????????????????????????? | | ??????????????????????????????????????????????? | | ??????????????????????????????????????????????? | | ??????????????????????????????????????????????? | | ??????????????????????????????????????????????? | | ??????????????????????????????????????????????? | | ??????????????????????????????????????????????? | | ??????????????????????????????????????????????? | | ??????????????????????????????????????????????? | | ???????????????????????#??????????????????????? | | ?????????????????????? #????????????????????? | | ?????????????????????? #???????????????????? | | ??????????????????????# #???????????????????? | | # ???????????????????? #???????????????????? | | ???????????????????? #???????????????????? | | ????????????????????# #???????????????????? | | ??????????????????????# #???????????????????? | | ?????????#######?????? ????????????????????? | | ?????????# # # ##?????# ????????????????????? | | ?????????# ##???## ##?##????????????????? | | ?????????# #???? ## ##???????????????? | | ?##??????# # ##???# #???????????????? | | # #??????###### ##?## #???????????????? | | ##????????## ### #????????????????? | | # ##???????# R @ #????????????????? | | ## ###????## RR #????????????????? | | ?##!%####?# ### #???????????????? | | ??###[ #?## #?##### #??????????????? | | ???## ##?## ## ##?## #??????????????? | | ???# ##### #??# #??????????????? | | ???#### ### #??### #?????????????? | | ?????## ##???? ##?????????????? | | ?????# ##??? ##??????????????? | | ?????# #???# #???????????????? | | ?????# #????###???????????????? | | ?????# ### #??????????????????????? | | ?????## ###?# ### #??????????????????????? | | ??????## ##???# #?? #??????????????????????? | | ???????###???? #??? #??????????????????????? | | ????????????? ??? ??????????????????????? | | ????????????? ??? ?????????????????????? | | ???????????? ####?? ????????????????????? | | ???????????? ##?????? ???????????????????? | | ??????????? "#???????? ??????????????????? | | ??????????? "?????????? ????????????????????? | | ??????????? "???????????????????????????????? | | ????????????"?????????????????????????????????? | | ??????????????????????????????????????????????? | | ??????????????????????????????????????????????? | +----------------------------------------------------+ Best States ------------- Heat Dissipation 25 Energy Generation 14 Energy Capacity 160 Matter Stores 300 Matter Capacity 300 Sight Range 16 Terrain Scan Density 10 Resistance: KI 35 Resistance: TH 35 Resistance: EX 35 Resistance: EM 35 Resistance: I 35 Resistance: S 35 Resistance: P 35 Evasion (%) 50 Targeting Accuracy 10 Offensive Hacking 20 Item Schematics ----------------- None Robot Schematics ------------------ None Fabricated ------------ Nothing Repaired ---------- Nothing Studied --------- None Alien Tech Used ----------------- None Achievements -------------- None Challenges ------------ None Game ------ Seed StormLobotomyAutobeam Manual? 0 Play Time 00:12:31 Cumulative 190.8 hours Start 2025.12.11 @ 12:57:52 End 2025.12.11 @ 13:10:05 Sessions 1 Manual Loads 0 Difficulty Explorer Special Mode None Game No. 275 Rogue 0 Adventurer 0 Explorer 275 Win Type - Total 0 Types 0/0/0/0/0/0/0/0/0/0 Lore% 71 Gallery% 67 Achievement% 53 Wizard Run 0 Options --------- Layout 1 ASCII 0 Keyboard 0 Movement Mouse Keybinds 0 Fullscreen 1 Font 24/Smallcaps Map View 50x35 Zoom Use 0% Tactical HUD 1 Map Filters NONE Filters NONE Steam 1 RUN: f6beb03f-b4c5-4660-a726-8630110da8ab